fUST/lending_fUST_20240422
["ID","MTS","AMOUNT","RATE_DAILY","PERIOD"]
[323186120,1713795043561,-644.4618781,0.00017773,2]
[323186122,1713795043571,-406.7720823,0.000178,2]
[323186124,1713795043581,-153.0,0.000178,2]
[323186127,1713795043595,-153.0,0.000178,2]
[323186129,1713795043605,-153.0,0.000178,2]
[323186131,1713795043616,-203.4958838,0.000178,2]
[323186133,1713795043626,-153.0,0.000178,2]
[323186135,1713795043636,-407.0406428,0.000178,2]
[323186137,1713795043646,-419.39507495,0.00017999,2]
[323186139,1713795043656,-153.0,0.00018,2]
[323186141,1713795043666,-203.4958838,0.00018,2]
[323186144,1713795043677,-153.0,0.00018,2]
[323186146,1713795043688,-306.0,0.00018,2]
[323186148,1713795043698,-603.23240406,0.000185,2]
[323186150,1713795043709,-621.22309391,0.00018661,2]
[323186152,1713795043721,-930.19358317,0.00018698,2]
[323186155,1713795043732,-813.43150571,0.00018898,2]
[323186157,1713795043744,-2511.18359286,0.000189,2]
[323186159,1713795043755,-9784.25019107,0.00019,2]
[323188125,1713795531534,2000.0,0.00027,120]
[323188126,1713795550663,2250.46462433,0.00019,10]
[323188127,1713795605426,3000.0,0.00027,120]
[323188128,1713795671228,4000.0,0.00027,120]
[323188129,1713795703456,5000.0,0.00027,120]
[323188131,1713795818856,2000.0,0.00025192,60]
[323188138,1713795915242,5540.1571584,0.00013699,2]
[323188140,1713795950887,154.84515485,0.00013699,2]
[323188143,1713795952516,3304.99768675,0.00013699,2]
[323188149,1713796035081,2549.1219358,0.00012991,2]
[323188151,1713796111958,154.84515485,0.00012991,2]
[323188152,1713796113051,6296.03290935,0.00012991,2]
[323188153,1713796113084,9791.25072916,0.00012991,2]
[323188154,1713796125956,154.84515485,0.00012991,2]
[323188155,1713796131050,5805.83817812,0.00012991,2]
[323188156,1713796147950,177.64121963,0.00012991,2]
[323188157,1713796166816,3070.42471824,0.00012,2]
[323188158,1713796166846,19000.0,0.00012,2]
[323188159,1713796166875,19000.0,0.00012,2]
[323188160,1713796166905,19000.0,0.00012,2]
[323188161,1713796166934,19000.0,0.00012,2]
[323188162,1713796166964,19000.0,0.00012,2]
[323188163,1713796166999,19000.0,0.00012,2]
[323188164,1713796167115,-12000.0,0.00012,2]
[323188165,1713796167221,-12000.0,0.00012,2]
[323188166,1713796167530,-12000.0,0.00012,2]
[323188167,1713796167614,-12000.0,0.00012,2]
[323188168,1713796167685,-12000.0,0.00012,2]
[323188169,1713796167741,-12000.0,0.00012,2]
[323188170,1713796167876,-12000.0,0.00012,2]
[323188171,1713796168067,-12000.0,0.00012,2]
[323188172,1713796168097,-12000.0,0.00012,2]
[323188173,1713796168178,-12000.0,0.00012,2]
[323188174,1713796168294,-12000.0,0.00012,2]
[323188175,1713796168623,-12000.0,0.00012,2]
[323188176,1713796168692,-12000.0,0.00012,2]
[323188177,1713796168761,-12000.0,0.00012,2]
[323188178,1713796168810,-12000.0,0.00012,2]
[323188179,1713796168863,-12000.0,0.00012,2]
[323188180,1713796169011,-12000.0,0.00012,2]
[323188181,1713796169087,-12000.0,0.00012,2]
[323188182,1713796169216,-12000.0,0.00012,2]
[323188183,1713796169309,-12000.0,0.00012,2]
[323188184,1713796169426,-12000.0,0.00012,2]
[323188185,1713796169527,-12000.0,0.00012,2]
[323188186,1713796169630,-12000.0,0.00012,2]
[323188187,1713796169778,-12000.0,0.00012,2]
[323188188,1713796169853,-12000.0,0.00012,2]
[323188189,1713796169958,-12000.0,0.00012,2]
[323188190,1713796170072,-12000.0,0.00012,2]
[323188191,1713796170180,-12000.0,0.00012,2]
[323188192,1713796170492,-12000.0,0.00012,2]
[323188193,1713796170525,-12000.0,0.00012,2]
[323188194,1713796170563,-12000.0,0.00012,2]
[323188197,1713796170893,-12000.0,0.00012,2]
[323188198,1713796171195,-12000.0,0.00012,2]
[323188199,1713796171399,-12000.0,0.00012,2]
[323188200,1713796171501,-12000.0,0.00012,2]
[323188201,1713796171605,-12000.0,0.00012,2]
[323188202,1713796171783,-12000.0,0.00012,2]
[323188203,1713796171826,-12000.0,0.00012,2]
[323188204,1713796171944,-12000.0,0.00012,2]
[323188205,1713796172047,-12000.0,0.00012,2]
[323188206,1713796172155,-12000.0,0.00012,2]
[323188207,1713796172261,-12000.0,0.00012,2]
[323188208,1713796172430,-12000.0,0.00012,2]
[323188209,1713796172480,-12000.0,0.00012,2]
[323188210,1713796172604,-12000.0,0.00012,2]
[323188211,1713796172726,-12000.0,0.00012,2]
[323188212,1713796172806,-12000.0,0.00012,2]
[323188213,1713796173163,-12000.0,0.00012,2]
[323188214,1713796173223,-12000.0,0.00012,2]
[323188215,1713796173260,-12000.0,0.00012,2]
[323188216,1713796173367,-12000.0,0.00012,2]
[323188217,1713796173464,-12000.0,0.00012,2]
[323188218,1713796173598,-12000.0,0.00012,2]
[323188219,1713796173715,-12000.0,0.00012,2]
[323188220,1713796173825,-12000.0,0.00012,2]
[323188221,1713796173929,-12000.0,0.00012,2]
[323188222,1713796174034,-12000.0,0.00012,2]
[323188223,1713796174146,-12000.0,0.00012,2]
[323188224,1713796174251,-12000.0,0.00012,2]
[323188225,1713796174360,-12000.0,0.00012,2]
[323188226,1713796174465,-12000.0,0.00012,2]
[323188227,1713796175482,-12000.0,0.00012,2]
[323188228,1713796175527,-12000.0,0.00012,2]
[323188229,1713796175576,-12000.0,0.00012,2]
[323188230,1713796176156,-12000.0,0.00012,2]
[323188231,1713796176262,-12000.0,0.00012,2]
[323188232,1713796176322,-12000.0,0.00012,2]
[323188233,1713796176354,-12000.0,0.00012,2]
[323188234,1713796176391,-12000.0,0.00012,2]
[323188235,1713796176456,-12000.0,0.00012,2]
[323188237,1713796176527,-12000.0,0.00012,2]
[323188238,1713796176586,-12000.0,0.00012,2]
[323188239,1713796176633,-12000.0,0.00012,2]
[323188240,1713796176682,-12000.0,0.00012,2]
[323188241,1713796176816,-12000.0,0.00012,2]
[323188242,1713796176860,-12000.0,0.00012,2]
[323188243,1713796176909,-12000.0,0.00012,2]
[323188244,1713796176952,-12000.0,0.00012,2]
[323188245,1713796176995,-12000.0,0.00012,2]
[323188246,1713796177052,-12000.0,0.00012,2]
[323188247,1713796177097,-12000.0,0.00012,2]
[323188253,1713796232382,-260.5,0.00011996,2]
[323188254,1713796232391,-300.0,0.00011997,2]
[323188255,1713796232401,-300.0,0.00011997,2]
[323188256,1713796232410,-31291.27918784,0.00011998,2]
[323188257,1713796232419,-469.51863427,0.00011998,2]
[323188258,1713796232429,-361.94594032,0.00011998,2]
[323188259,1713796232438,-7865.45010346,0.00011999,2]
[323188261,1713796232449,-564.41327959,0.00011999,2]
[323188262,1713796232458,-2137.1707495,0.00012569,2]
[323188263,1713796232468,-4549.3893556,0.00012618,2]
[323188264,1713796232477,-300.0,0.0001317,2]
[323188265,1713796232487,-420.0,0.00013197,2]
[323188266,1713796232497,-1418.17369921,0.00013488,2]
[323188267,1713796232507,-382.800184,0.00013699,2]
[323188268,1713796232517,-155.11529913,0.00013699,2]
[323188269,1713796232529,-157.69768027,0.00013864,2]
[323188270,1713796232538,-2516.3002862,0.00013868,2]
[323188271,1713796232550,-587.0,0.00014516,2]
[323188272,1713796232560,-170489.32954023,0.00014654,2]
[323188359,1713796240570,-651.07982112,0.00014556,2]
[323188361,1713796240578,-31868.65161102,0.00014654,2]
[323188648,1713796243518,-33809.11739454,0.00014654,2]
[323188651,1713796243529,-3307.8,0.00014654,2]
[323188957,1713796246548,-2900.22024493,0.00014653,2]
[323188959,1713796246557,-31285.28113,0.00014653,2]
[323188961,1713796246567,-103907.17452422,0.00014654,2]
[323190753,1713796812277,1000.0,0.0002,10]
[323190755,1713796906634,311.10543878,0.00027,120]
[323190756,1713796908734,10000.0,0.00027,120]
[323190757,1713796928191,10000.0,0.00025192,60]
[323190766,1713797138112,5000.0,0.000232,11]
[323190767,1713797146356,2985.01626398,0.000232,11]
[323190780,1713797365151,-207.85032377,0.0001221,2]
[323190781,1713797365171,-308.43832005,0.0001221,2]
[323190782,1713797365192,-408.79691811,0.0001221,2]
[323190783,1713797365211,-329.57107256,0.00012211,2]
[323190784,1713797365232,-2587.27470458,0.00012211,2]
[323190785,1713797365254,-300.0,0.00012212,2]
[323190786,1713797365274,-361.94594032,0.00012212,2]
[323190787,1713797365293,-2623.48627296,0.00012212,2]
[323190788,1713797365314,-86.146423,0.00012213,2]
[323190790,1713797385631,1206.67266007,0.00024568,30]
[323190791,1713797386986,150.83408251,0.00019632,30]
[323190827,1713797432601,-386.01217285,0.00012205,2]
[323190834,1713797432659,-83.50646142,0.00012205,2]
[323190837,1713797432669,-154.84515485,0.00012206,2]
[323190840,1713797432679,-193.56362685,0.00012207,2]
[323190842,1713797432689,-471.74403626,0.00012208,2]
[323190844,1713797432699,-260.5,0.00012208,2]
[323190847,1713797432709,-154.84515485,0.00012208,2]
[323190850,1713797432720,-154.84515485,0.00012209,2]
[323190852,1713797432730,-1293.24324257,0.00012211,2]
[323190872,1713797436362,3673.45333556,0.00019632,10]
[323190887,1713797438609,-962.61,0.00012166,2]
[323190994,1713797441232,-930.8453639,0.00012166,2]
[323190996,1713797441242,-154.84515485,0.00012204,2]
[323190998,1713797441251,-154.84515485,0.0001221,2]
[323191000,1713797441260,-326.92077311,0.00012211,2]
[323191002,1713797441269,-572.7186113,0.00012213,2]
[323191004,1713797441278,-1131.3927275,0.00012287,2]
[323191005,1713797441290,-421.79165706,0.00013086,2]
[323191008,1713797441299,-721.67755642,0.00013187,2]
[323191010,1713797441309,-468.14744976,0.00013276,2]
[323191012,1713797441322,-235.94437418,0.00013276,2]
[323191014,1713797441331,-300.0,0.00013372,2]
[323191016,1713797441340,-300.0,0.00013372,2]
[323191018,1713797441349,-2526.13597232,0.00013373,2]
[323191053,1713797441678,-2478.09096799,0.00013373,2]
[323192417,1713797454353,3673.45333556,0.00019632,10]
[323194732,1713797480430,3673.45333556,0.00019632,10]
[323196288,1713797500353,2695.93527122,0.00019632,10]
[323196324,1713797684986,16611.81035322,0.00025,30]
[323196325,1713797701245,250.0,0.00011315,2]
[323196326,1713797721902,17951.7135069,0.00011315,2]
[323196327,1713797752610,538.44268966,0.00011315,2]
[323196328,1713797758428,180.28293001,0.00011315,2]
[323196329,1713797766608,79.56087343,0.00011315,2]
[323196330,1713797766640,200.96776788,0.00011315,2]
[323196331,1713797772420,180.28293001,0.00011315,2]
[323196332,1713797788619,280.52864131,0.00011315,2]
[323196333,1713797792275,250.64052161,0.00011315,2]
[323196334,1713797808733,280.52864131,0.00011315,2]
[323196341,1713797826629,280.52864131,0.00011315,2]
[323196345,1713797852638,280.52864131,0.00011315,2]
[323196352,1713797874629,280.52864131,0.00011315,2]
[323196354,1713797892630,280.52864131,0.00011315,2]
[323196356,1713797916516,280.52864131,0.00011315,2]
[323196357,1713797930640,280.52864131,0.00011315,2]
[323196359,1713797950872,280.52864131,0.00011315,2]
[323196360,1713797970646,318.16350438,0.00011315,2]
[323196362,1713798032357,190.5551466,0.00011004,2]
[323196363,1713798063092,186.5998009,0.00011378,2]
[323196367,1713798188533,250.0,0.00010753,2]
[323196369,1713798238305,-609.7622977,0.00018,7]
[323196371,1713798251622,3130.60253076,0.00018,7]
[323196372,1713798261898,500.0,0.00025,30]
[323196373,1713798262537,500.0,0.00025,30]
[323196374,1713798263210,500.0,0.00025,30]
[323196375,1713798263832,500.0,0.00025,30]
[323196376,1713798264433,500.0,0.00025,30]
[323196377,1713798265026,500.0,0.00025,30]
[323196378,1713798265629,500.0,0.00025,30]
[323196379,1713798266224,500.0,0.00025,30]
[323196380,1713798267013,500.0,0.00025,30]
[323196381,1713798267476,500.0,0.00025,30]
[323196382,1713798268106,500.0,0.00025,30]
[323196383,1713798268731,500.0,0.00025,30]
[323196384,1713798269354,500.0,0.00025,30]
[323196385,1713798269977,500.0,0.00025,30]
[323196386,1713798270619,500.0,0.00025,30]
[323196387,1713798271271,500.0,0.00025,30]
[323196388,1713798271886,500.0,0.00025,30]
[323196389,1713798272483,500.0,0.00025,30]
[323196390,1713798273126,500.0,0.00025,30]
[323196391,1713798273750,500.0,0.00025,30]
[323196392,1713798275452,500.0,0.00025,30]
[323196393,1713798276343,500.0,0.00025,30]
[323196394,1713798276919,500.0,0.00025,30]
[323196395,1713798277694,500.0,0.00025,30]
[323196396,1713798278373,500.0,0.00025,30]
[323196397,1713798278984,500.0,0.00025,30]
[323196398,1713798280279,500.0,0.00025,30]
[323196399,1713798281598,500.0,0.00025,30]
[323196400,1713798282247,500.0,0.00025,30]
[323196401,1713798282888,500.0,0.00025,30]
[323196402,1713798283487,500.0,0.00025,30]
[323196403,1713798284118,500.0,0.00025,30]
[323196404,1713798284756,500.0,0.00025,30]
[323196405,1713798285415,500.0,0.00025,30]
[323196406,1713798286083,379.0,0.00025,30]
[323196409,1713798313135,500.0,0.00027,120]
[323196411,1713798397114,-154.84515485,0.00011715,2]
[323196412,1713798397134,-623.66148367,0.00011715,2]
[323196413,1713798397155,-146.5941536,0.00011716,2]
[323196414,1713798399621,-2299.36618801,0.000205,5]
[323196415,1713798399643,-4125.26898353,0.0002125,5]
[323196422,1713798496199,212.02643912,0.000117,2]
[323196433,1713798499038,154.84515485,0.000117,2]
[323196437,1713798500154,154.84515485,0.000117,2]
[323196439,1713798500606,154.84515485,0.000117,2]
[323196440,1713798501163,154.84515485,0.000117,2]
[323196441,1713798501749,673.42380373,0.000117,2]
[323196442,1713798502009,308.43832005,0.000117,2]
[323196443,1713798504179,977.60937861,0.000117,2]
[323196444,1713798504777,12107.15399592,0.00010706,2]
[323196445,1713798504808,12792.84600408,0.00010706,2]
[323196508,1713798631888,-154.84515485,0.00011589,2]
[323196510,1713798631898,-95.15484515,0.0001159,2]
[323196673,1713798637845,-329.57107256,0.00011588,2]
[323196674,1713798637854,-549.48258406,0.00011588,2]
[323196675,1713798637863,-308.43832005,0.00011588,2]
[323196676,1713798637873,-154.84515485,0.00011588,2]
[323196677,1713798637882,-207.85032377,0.00011589,2]
[323196678,1713798637891,-1024.6439213,0.0001159,2]
[323196679,1713798637901,-1119.79876642,0.00011607,2]
[323196680,1713798637910,-1119.79876642,0.00011624,2]
[323196682,1713798637919,-1119.79876642,0.0001164,2]
[323196684,1713798637928,-1119.79876642,0.00011657,2]
[323196686,1713798637937,-471.74403626,0.00011686,2]
[323196688,1713798637947,-154.84515485,0.00011686,2]
[323196690,1713798637962,-206.02600307,0.00011686,2]
[323196691,1713798637971,-474.69572621,0.00011687,2]
[323196693,1713798637980,-361.94594032,0.00011687,2]
[323196695,1713798637989,-154.84515485,0.00011687,2]
[323196696,1713798637999,-260.5,0.00011687,2]
[323196698,1713798638009,-300.0,0.00011687,2]
[323196700,1713798638018,-154.84515485,0.00011687,2]
[323196702,1713798638027,-154.84515485,0.00011687,2]
[323196704,1713798638036,-7865.45010346,0.00011687,2]
[323196705,1713798638044,-606.7573752,0.00011687,2]
[323196715,1713798638210,-300.0,0.00011688,2]
[323196717,1713798638220,-300.0,0.00011688,2]
[323196718,1713798638229,-154.84515485,0.00011688,2]
[323196720,1713798638240,-469.51863427,0.00011688,2]
[323196721,1713798638249,-154.84515485,0.00011688,2]
[323196722,1713798638259,-203.80378127,0.00011688,2]
[323196723,1713798638268,-2452.2553478,0.00011689,2]
[323196724,1713798638277,-372.95798615,0.00011689,2]
[323196725,1713798638289,-153.28374546,0.00011689,2]
[323196726,1713798638298,-521.42032031,0.00011689,2]
[323196727,1713798638308,-31291.27918784,0.00011689,2]
[323196728,1713798638317,-564.41327959,0.0001169,2]
[323196729,1713798638327,-154.84515485,0.0001169,2]
[323196730,1713798638336,-283.30931028,0.0001169,2]
[323196731,1713798638346,-154.84515485,0.0001169,2]
[323196732,1713798638355,-1550.48057045,0.0001169,2]
[323196733,1713798638364,-173.19355555,0.00011691,2]
[323196734,1713798638374,-1577.66906822,0.00011691,2]
[323196735,1713798638384,-193.56362685,0.00011691,2]
[323196736,1713798638393,-154.84515485,0.00011692,2]
[323196737,1713798638403,-408.79691811,0.00011692,2]
[323196738,1713798638412,-266.5550809,0.00011704,2]
[323196739,1713798638421,-584.43413085,0.00011704,2]
[323196740,1713798638430,-216.31330408,0.00011704,2]
[323196741,1713798638439,-268.98547336,0.00011704,2]
[323196742,1713798638450,-930.11787385,0.00011704,2]
[323196743,1713798638459,-207.03798919,0.00011704,2]
[323196744,1713798638469,-154.84515485,0.00011707,2]
[323196745,1713798638478,-154.8915759,0.00011723,2]
[323196746,1713798638490,-3973.49721573,0.00011731,2]
[323196747,1713798638500,-451.33609059,0.00011735,2]
[323196748,1713798638510,-988.20145371,0.00011736,2]
[323196749,1713798638519,-508.47806633,0.00011737,2]
[323196750,1713798638528,-882.92224013,0.00011756,2]
[323196751,1713798638538,-326241.72056977,0.00011756,2]
[323196752,1713798638550,-3171.29975692,0.00011756,2]
[323196777,1713798640062,-1877.77097996,0.00011589,2]
[323196778,1713798640072,-154.84515485,0.00011589,2]
[323196779,1713798640082,-1653.98957707,0.00011756,2]
[323196875,1713798844505,364.8548493,0.000114,2]
[323196876,1713798858494,364.8548493,0.000114,2]
[323196877,1713798882607,364.8548493,0.000114,2]
[323196878,1713798900714,334.37300451,0.000114,2]
[323196880,1713798991892,1193.0,0.00025,30]
[323196882,1713799026880,-408.79691811,0.00011557,2]
[323196883,1713799026902,-154.82968734,0.00011558,2]
[323196884,1713799026922,-549.48258406,0.00011558,2]
[323196885,1713799026942,-361.94594032,0.00011559,2]
[323196886,1713799026964,-260.5,0.00011559,2]
[323196887,1713799026986,-203.80378127,0.00011559,2]
[323196888,1713799027007,-207.85032377,0.0001156,2]
[323196889,1713799027028,-154.82968734,0.0001156,2]
[323196890,1713799027049,-300.0,0.00011561,2]
[323196891,1713799027072,-300.0,0.00011561,2]
[323196892,1713799027097,-300.0,0.00011561,2]
[323196893,1713799027118,-154.82968734,0.00011562,2]
[323196894,1713799027296,-7865.45010346,0.00011562,2]
[323196895,1713799027316,-154.84515485,0.00011587,2]
[323196896,1713799027337,-475.52710444,0.00011753,2]
[323196897,1713799027358,-519.72911189,0.00011753,2]
[323196898,1713799027378,-315.67962424,0.00011754,2]
[323196899,1713799027398,-161.1878028,0.00011754,2]
[323196900,1713799027419,-170.45152286,0.00011754,2]
[323196901,1713799027440,-181.17363377,0.00011754,2]
[323196902,1713799027459,-155.33780646,0.00011754,2]
[323196903,1713799027480,-517.4065891,0.00011754,2]
[323196904,1713799027499,-285.20305744,0.00011754,2]
[323196905,1713799027519,-173.75645185,0.00011754,2]
[323196906,1713799027541,-285.00568396,0.00011754,2]
[323196907,1713799027562,-155.58584727,0.00011754,2]
[323196908,1713799027585,-312.57487332,0.00011754,2]
[323196909,1713799027605,-197.59922606,0.00011754,2]
[323196910,1713799027625,-181.41670817,0.00011754,2]
[323196911,1713799027647,-168.56635557,0.00011754,2]
[323196912,1713799027668,-182.53662275,0.00011754,2]
[323196913,1713799027691,-157.32695344,0.00011754,2]
[323196914,1713799027712,-180.4422146,0.00011754,2]
[323196915,1713799027734,-155.99884431,0.00011754,2]
[323196916,1713799027754,-509.99693985,0.00011754,2]
[323196917,1713799027775,-1145.20706922,0.00011754,2]
[323196918,1713799027795,-155.32689021,0.00011755,2]
[323196919,1713799027817,-1575.87720725,0.00011755,2]
[323196920,1713799027844,-1280.92199131,0.00011755,2]
[323196924,1713799065802,4778.21644351,0.00010997,2]
[323196925,1713799065835,19000.0,0.00010997,2]
[323196926,1713799065869,1121.78355649,0.00010997,2]
[323196937,1713799079561,-228.85609821,0.00011753,2]
[323196938,1713799079582,-158.7328254,0.00011753,2]
[323196939,1713799079603,-554.2187587,0.00011753,2]
[323196940,1713799079626,-309.47738229,0.00011753,2]
[323196941,1713799079647,-300.0,0.00011753,2]
[323196942,1713799079668,-1490.03151355,0.00011754,2]
[323196943,1713799079689,-950.82741201,0.00011754,2]
[323196944,1713799079710,-208.73475577,0.00011754,2]
[323196945,1713799079730,-347.12447098,0.00011754,2]
[323196946,1713799079752,-324.10091233,0.00011754,2]
[323196947,1713799079774,-260.5,0.00011754,2]
[323196948,1713799079795,-354.58688268,0.00011754,2]
[323196949,1713799079816,-10857.80898808,0.00011755,2]
[323196954,1713799204785,1558.3399398,0.00010754,2]
[323196958,1713799369796,10000.0,0.00025,30]
[323196960,1713799538448,16319.87650371,0.00010535,2]
[323196961,1713799538480,8580.12349629,0.00010535,2]
[323196963,1713799766105,-701.81456509,0.00011516,2]
[323196964,1713799766126,-260.5,0.00011517,2]
[323196965,1713799766148,-143.14172051,0.00011517,2]
[323196998,1713799831983,-1311.46340123,0.00011422,2]
[323196999,1713799831993,-1620.16401568,0.00011422,2]
[323197000,1713799832002,-596.73090927,0.00011423,2]
[323197001,1713799832011,-162.53613582,0.00011424,2]
[323197002,1713799832021,-539.74228579,0.00011516,2]
[323197003,1713799832030,-300.0,0.00011521,2]
[323197004,1713799832039,-300.0,0.00011521,2]
[323197005,1713799832048,-3301.96603392,0.00011522,2]
[323197006,1713799832058,-260.5,0.00011523,2]
[323197008,1713799832068,-193.79016823,0.00011523,2]
[323197010,1713799832077,-59148.32683968,0.00011524,2]
[323197012,1713799832086,-81117.13971443,0.00011524,2]
[323197077,1713799837984,-63481.82607793,0.00011524,2]
[323197166,1713799840647,-658.20020839,0.00011524,2]
[323197167,1713799840659,-424.4466,0.00011524,2]
[323197195,1713799843323,-1429.45093285,0.00011524,2]
[323197223,1713800045953,10419.87650371,0.00010524,2]
[323197224,1713800045985,14480.12349629,0.00010524,2]
[323197227,1713800554058,4519.87650371,0.00010431,2]
[323197228,1713800554090,19000.0,0.00010431,2]
[323197230,1713800608422,608.4326446,0.0002,10]
[323197232,1713800726775,-247.17096983,0.00010414,2]
[323197233,1713800726799,-260.5,0.00010414,2]
[323197234,1713800726822,-1877.77097996,0.00010414,2]
[323197235,1713800726844,-539.74228579,0.00010415,2]
[323197236,1713800726866,-308.43832005,0.00010415,2]
[323197237,1713800726889,-283.30931028,0.00010415,2]
[323197238,1713800726913,-549.48258406,0.00010415,2]
[323197239,1713800726935,-161.99063186,0.00010416,2]
[323197240,1713800726958,-673.42380373,0.00010416,2]
[323197241,1713800726981,-300.0,0.00010417,2]
[323197242,1713800727003,-300.0,0.00010417,2]
[323197243,1713800727025,-157.7311165,0.00010418,2]
[323197244,1713800727048,-623.66148367,0.00010418,2]
[323197245,1713800727070,-1490.03151355,0.00010418,2]
[323197246,1713800727093,-1620.16401568,0.00010418,2]
[323197247,1713800727115,-154.82968734,0.00010419,2]
[323197248,1713800727136,-154.82968734,0.00010419,2]
[323197249,1713800727158,-5800.54488045,0.0001042,2]
[323197250,1713800727181,-2587.27470458,0.0001042,2]
[323197251,1713800727203,-300.0,0.00010421,2]
[323197252,1713800727225,-808.31234139,0.00010421,2]
[323197253,1713800727247,-206.02600307,0.00010422,2]
[323197254,1713800727269,-408.79691811,0.00010422,2]
[323197255,1713800727294,-1380.12349629,0.00010431,2]
[323197256,1713800727321,-154.9371782,0.00010524,2]
[323197257,1713800927686,-6360.45,0.0002,5]
[323197259,1713800994745,-3628.85859588,0.0002,5]
[323197260,1713801009414,-524.44715546,0.0002,4]
[323197261,1713801009443,-524.44715546,0.0002,4]
[323197262,1713801012522,1206.67266007,0.00024052,30]
[323197263,1713801013758,150.83408251,0.00020012,4]
[323197264,1713801013838,150.83408251,0.00019612,7]
[323197265,1713801013936,150.83408251,0.0001922,30]
[323197267,1713801032248,-2587.27470458,0.00011061,2]
[323197268,1713801032259,-808.31234139,0.00011061,2]
[323197269,1713801032269,-539.74228579,0.00011062,2]
[323197270,1713801032279,-283.30931028,0.00011062,2]
[323197271,1713801032288,-260.5,0.00011063,2]
[323197272,1713801032298,-300.0,0.00011072,2]
[323197274,1713801032307,-300.0,0.00011073,2]
[323197276,1713801032317,-7363.70156566,0.00011074,2]
[323197278,1713801032326,-364.8548493,0.00011175,2]
[323197279,1713801032335,-545.00269188,0.00011423,2]
[323197280,1713801032344,-205.87422279,0.0001152,2]
[323197281,1713801032353,-273.41804017,0.0001152,2]
[323197282,1713801032363,-283.8848968,0.0001152,2]
[323197283,1713801032373,-1875.9475601,0.0001152,2]
[323197284,1713801032382,-381.71038916,0.0001152,2]
[323197285,1713801032390,-154.92252328,0.0001152,2]
[323197286,1713801032399,-408.419886,0.0001152,2]
[323197287,1713801032409,-364.63884157,0.0001152,2]
[323197288,1713801032419,-247.36070264,0.0001152,2]
[323197289,1713801032428,-222.21743369,0.0001152,2]
[323197290,1713801032438,-157.30895088,0.0001152,2]
[323197291,1713801032448,-549.48258406,0.0001152,2]
[323197292,1713801032457,-1489.55578409,0.0001152,2]
[323197293,1713801032467,-5817.88266251,0.0001152,2]
[323197294,1713801032476,-213.748594,0.00011521,2]
[323197295,1713801032485,-154.84515485,0.00011521,2]
[323197296,1713801032495,-204.40211237,0.00011521,2]
[323197297,1713801032504,-705.26131867,0.00011521,2]
[323197298,1713801032513,-361.81492194,0.00011521,2]
[323197299,1713801032522,-329.44588054,0.00011521,2]
[323197300,1713801032532,-7858.55367278,0.00011521,2]
[323197301,1713801032541,-471.31782646,0.00011521,2]
[323197302,1713801032550,-155.15687903,0.00011521,2]
[323197303,1713801032559,-564.20205004,0.00011521,2]
[323197304,1713801032569,-155.25203139,0.00011521,2]
[323197305,1713801032578,-977.06231715,0.00011521,2]
[323197306,1713801032588,-204.0428263,0.00011521,2]
[323197307,1713801032597,-154.90705577,0.00011522,2]
[323197308,1713801032607,-211.7214804,0.00011522,2]
[323197309,1713801032616,-208.48934142,0.00011522,2]
[323197310,1713801032625,-883.26316222,0.00011522,2]
[323197311,1713801032634,-7815.22467221,0.00011522,2]
[323197325,1713801038254,-308.43832005,0.0001106,2]
[323197326,1713801038263,-1274.55578627,0.00011522,2]
[323197329,1713801038275,-767.85,0.00011522,2]
[323197437,1713801040279,-8486.65168284,0.00011522,2]
[323197451,1713801043594,-0.01298775,0.00011522,2]